fUSD/lending_fUSD_20240103
["ID","MTS","AMOUNT","RATE_DAILY","PERIOD"]
[310068830,1704299657245,-150.0,0.0003736,2]
[310068831,1704299657255,-171.0,0.00037369,2]
[310068832,1704299657265,-197.0,0.0003738,44]
[310068833,1704299657274,-450.42,0.00037382,2]
[310068834,1704299657284,-150.0,0.00037386,2]
[310068835,1704299657293,-150.0,0.0003739,2]
[310068836,1704299657305,-6447.21,0.0003739,7]
[310068837,1704299657316,-6447.21,0.0003739,7]
[310068838,1704299657326,-150.0,0.000374,30]
[310068839,1704299657336,-150.0,0.00037406,2]
[310068840,1704299657346,-150.0,0.00037436,2]
[310068841,1704299657356,-150.0,0.00037437,2]
[310068842,1704299657365,-150.0,0.00037444,2]
[310068843,1704299657375,-150.0,0.00037447,2]
[310068844,1704299657385,-150.0,0.00037456,2]
[310068845,1704299657395,-150.0,0.00037459,2]
[310068846,1704299657405,-153.84,0.00037459,2]
[310068847,1704299657415,-192.30351148,0.00037474,2]
[310068848,1704299657425,-150.0,0.00037475,2]
[310068849,1704299657434,-150.0,0.00037486,2]
[310068850,1704299657445,-150.0,0.00037491,2]
[310068851,1704299657454,-2500.00000099,0.000375,9]
[310068852,1704299657464,-2500.0,0.000375,7]
[310068853,1704299657473,-1079.70550939,0.00037501,2]
[310068854,1704299657483,-150.0,0.00037508,2]
[310068855,1704299657493,-150.0,0.00037515,2]
[310068856,1704299657503,-150.0,0.00037518,2]
[310068857,1704299657513,-151.0,0.00037537,2]
[310068858,1704299657523,-250.49088,0.00037537,2]
[310068859,1704299657533,-150.0,0.00037551,2]
[310068860,1704299657543,-800.52,0.00037561,2]
[310068861,1704299657554,-937.85,0.00037561,2]
[310068862,1704299657564,-400.26,0.00037561,2]
[310068863,1704299657573,-400.26,0.00037561,2]
[310068864,1704299657583,-937.85,0.00037561,2]
[310068865,1704299657593,-400.26,0.00037561,2]
[310068866,1704299657603,-937.85,0.00037561,2]
[310068867,1704299657613,-937.85,0.00037561,2]
[310068868,1704299657623,-400.26,0.00037561,2]
[310068869,1704299657634,-400.26,0.00037561,2]
[310068870,1704299657644,-937.85,0.00037561,2]
[310068871,1704299657655,-937.85,0.00037561,2]
[310068872,1704299657665,-937.85,0.00037561,2]
[310068873,1704299657676,-400.26,0.00037561,2]
[310068874,1704299657687,-937.85,0.00037561,2]
[310068875,1704299657697,-400.26,0.00037561,2]
[310068876,1704299657708,-937.85,0.00037561,2]
[310068877,1704299657718,-400.26,0.00037561,2]
[310068878,1704299657728,-400.26,0.00037561,2]
[310068879,1704299657737,-937.85,0.00037561,2]
[310068880,1704299657748,-400.26,0.00037561,2]
[310068881,1704299657757,-400.26,0.00037561,2]
[310068882,1704299657768,-150.0,0.00037574,2]
[310068883,1704299657779,-150.0,0.00037581,2]
[310068884,1704299657791,-150.0,0.00037588,2]
[310068885,1704299657805,-440.19,0.00037589,2]
[310068886,1704299657815,-500.0,0.00037596,2]
[310068887,1704299657826,-150.0,0.000376,30]
[310068888,1704299657837,-157.28,0.000376,3]
[310068889,1704299657847,-157.28,0.000376,3]
[310068890,1704299657857,-157.28,0.000376,3]
[310068891,1704299657867,-157.28,0.000376,3]
[310068892,1704299657877,-157.28,0.000376,3]
[310068893,1704299657887,-157.28,0.000376,3]
[310068894,1704299657898,-157.28,0.000376,3]
[310068895,1704299657909,-157.28,0.000376,3]
[310068896,1704299657919,-150.0,0.00037613,2]
[310068897,1704299657930,-150.0,0.00037621,2]
[310068898,1704299657940,-619.55,0.00037628,2]
[310068899,1704299657949,-150.0,0.0003763,2]
[310068900,1704299657960,-150.0,0.00037639,2]
[310068901,1704299657969,-150.0,0.00037647,2]
[310068902,1704299657979,-5000.0,0.00037648,3]
[310068903,1704299657989,-6447.21,0.00037663,7]
[310068904,1704299658001,-6447.21,0.00037663,7]
[310068905,1704299658010,-150.0,0.00037669,2]
[310068906,1704299658021,-150.0,0.00037696,2]
[310068907,1704299658031,-51496.44,0.000377,7]
[310068908,1704299658040,-88818.34,0.000377,7]
[310068909,1704299658050,-21401.79,0.000377,7]
[310068910,1704299658062,-7142.85,0.000377,3]
[310068911,1704299658071,-150.0,0.00037704,2]
[310068912,1704299658080,-150.0,0.00037706,2]
[310068913,1704299658090,-150.0,0.00037711,2]
[310068914,1704299658099,-1024827.06211272,0.00037726,30]
[310068915,1704299669220,-20490.6866056,0.00037726,30]
[310068916,1704299669232,-30520.14871812,0.00037726,30]
[310068917,1704299669245,-3284.45434876,0.00037726,30]
[310068918,1704299669257,-49978.65913483,0.00037726,30]
[310068919,1704299669268,-1085.31146886,0.00037726,30]
[310068920,1704299669294,-150.93,0.00034,2]
[310068921,1704299669303,-8786.33637949,0.00037726,30]
[310068922,1704299669327,-517.077,0.00037726,30]
[310068923,1704299669504,7403.93401596,0.00022999,2]
[310068924,1704299669570,542.69342556,0.00022999,2]
[310068925,1704299669611,-1137.0,0.00031213,2]
[310068926,1704299669622,-594.1096,0.00031369,19]
[310068927,1704299669634,-68.63828313,0.00031369,19]
[310068928,1704299669645,-500.0,0.00032876,2]
[310068929,1704299669796,-520.83,0.00032876,2]
[310068930,1704299669806,-500.0,0.00032876,2]
[310068931,1704299669821,-500.0,0.00032876,2]
[310068932,1704299669831,-456.53440295,0.00032876,2]
[310068933,1704299669841,-150.93,0.00034,2]
[310068934,1704299669850,-150.93,0.00034,2]
[310068935,1704299669860,-150.93,0.00034,2]
[310068936,1704299669869,-150.93,0.00034,2]
[310068937,1704299669878,-150.93,0.00034,2]
[310068938,1704299669888,-150.93,0.00034,2]
[310068939,1704299669898,-150.93,0.00034,2]
[310068940,1704299669908,-150.93,0.00034,2]
[310068941,1704299669918,-150.93,0.00034,2]
[310068942,1704299669927,-150.93,0.00034,2]
[310068943,1704299669936,-150.93,0.00034,2]
[310068944,1704299669946,-150.93,0.00034,2]
[310068945,1704299669957,-150.93,0.00034,2]
[310068946,1704299669966,-150.93,0.00034,2]
[310068947,1704299669976,-173.21,0.00037561,2]
[310068948,1704299669985,-2295.6112263,0.00037726,30]
[310068949,1704299670021,-150.93,0.00034,2]
[310068950,1704299670031,-150.93,0.00034,2]
[310068951,1704299670041,-3918.53298864,0.00037726,30]
[310068952,1704299670066,-1428.27123083,0.00037726,30]
[310068953,1704299670079,-4490.98429424,0.00037726,30]
[310068954,1704299670091,-325.06631767,0.00037726,30]
[310068955,1704299670103,-958.76890871,0.00037726,30]
[310068956,1704299670125,-150.93,0.00034,2]
[310068957,1704299670134,-3458.62561454,0.00037726,30]
[310068958,1704299670146,-1909.29416308,0.00037726,30]
[310068959,1704299670162,-150.93,0.00034,2]
[310068960,1704299670170,-505.86101804,0.00037726,30]
[310068961,1704299670253,283.42004374,0.00022999,2]
[310068962,1704299670310,291.28624859,0.00022999,2]
[310068963,1704299670418,608.0657442,0.00022999,2]
[310068964,1704299670521,18914.29766501,0.00022999,2]
[310068965,1704299670568,-677.73828809,0.00031926,4]
[310068966,1704299670593,-165.43181062,0.00031926,4]
[310068967,1704299670603,-222.29996028,0.00031926,4]
[310068968,1704299670613,-269.38241397,0.00032876,2]
[310068969,1704299670625,-230.61758603,0.00032876,2]
[310068970,1704299670634,-77.63241397,0.00032876,2]
[310068971,1704299670645,-422.36758603,0.00032876,2]
[310068972,1704299670655,-500.0,0.00032876,2]
[310068973,1704299670664,-150.93,0.00034,2]
[310068974,1704299670673,-87.12789813,0.00034,2]
[310068975,1704299670685,-63.80210187,0.00034,2]
[310068976,1704299670694,-150.93,0.00034,2]
[310068977,1704299670703,-150.93,0.00034,2]
[310068978,1704299670712,-37.38715297,0.00034,2]
[310068979,1704299670731,-113.54284703,0.00034,2]
[310068980,1704299670740,-150.93,0.00034,2]
[310068981,1704299670749,-150.93,0.00034,2]
[310068982,1704299670758,-150.93,0.00034,2]
[310068983,1704299670768,-150.93,0.00034,2]
[310068984,1704299670777,-150.93,0.00034,2]
[310068985,1704299670788,-150.93,0.00034,2]
[310068986,1704299670797,-150.93,0.00034,2]
[310068987,1704299670807,-150.93,0.00034,2]
[310068988,1704299670823,-150.93,0.00034,2]
[310068989,1704299670833,-150.93,0.00034,2]
[310068990,1704299670842,-150.93,0.00034,2]
[310068991,1704299670852,-150.93,0.00034,2]
[310068992,1704299670861,-150.93,0.00034,2]
[310068993,1704299670870,-150.93,0.00034,2]
[310068994,1704299670880,-150.93,0.00034,2]
[310068995,1704299670888,-150.93,0.00034,2]
[310068996,1704299670897,-150.93,0.00034,2]
[310068997,1704299670906,-150.93,0.00034,2]
[310068998,1704299670915,-150.93,0.00034,2]
[310068999,1704299670924,-150.93,0.00034,2]
[310069000,1704299670933,-150.93,0.00034,2]
[310069001,1704299670942,-6965.87745319,0.00037726,30]
[310069002,1704299670954,-8924.70729016,0.00037726,30]
[310069003,1704299671506,-2108.9075643,0.00037726,30]
[310069004,1704299671517,-6175.04416883,0.00037726,30]
[310069005,1704299671533,-150.93,0.00034,2]
[310069006,1704299671542,-2251.79424542,0.00037726,30]
[310069007,1704299671553,-309.43602853,0.00037726,30]
[310069008,1704299671589,-150.93,0.00034,2]
[310069009,1704299671598,-6813.6052164,0.00037726,30]
[310069010,1704299671611,-8437.89917993,0.00037726,30]
[310069011,1704299671623,-6245.28623264,0.00037726,30]
[310069012,1704299671634,-4959.91572337,0.00037726,30]
[310069013,1704299671657,-202.9641373,0.00031212,4]
[310069014,1704299671667,-150.93,0.00034,2]
[310069015,1704299671676,-217.00784912,0.00037726,30]
[310069016,1704299672049,401.16267658,0.00022309,2]
[310069018,1704299672119,352.66747811,0.00022999,2]
[310069019,1704299672159,520.00185062,0.00022999,2]
[310069020,1704299672215,526.41801602,0.00022999,2]
[310069021,1704299672305,981.67763344,0.00022999,2]
[310069022,1704299672387,3789.26963208,0.00022999,2]
[310069023,1704299672419,282.37401869,0.00022999,2]
[310069024,1704299672495,217.56881384,0.00022999,2]
[310069025,1704299672717,269.63734742,0.00022999,2]
[310069026,1704299672758,1020.14806453,0.00022999,2]
[310069027,1704299704718,283.42004374,0.00022999,2]
[310069031,1704299706695,608.0657442,0.00022999,2]
[310069032,1704299709512,7403.93401596,0.00022999,2]
[310069033,1704299711186,608.0657442,0.00022999,2]
[310069034,1704299714014,7403.93401596,0.00022999,2]
[310069036,1704299718721,283.42004374,0.00022999,2]
[310069037,1704299734718,283.42004374,0.00022999,2]
[310069038,1704299736802,217.56881384,0.00022999,2]
[310069039,1704299739309,217.56881384,0.00022999,2]
[310069041,1704299743532,608.0657442,0.00022999,2]
[310069042,1704299743803,217.56881384,0.00022999,2]
[310069043,1704299746014,7403.93401596,0.00022999,2]
[310069044,1704299754732,267.2747326,0.00022999,2]
[310069045,1704299763388,520.00185062,0.00022999,2]
[310069046,1704299764015,2329.88502517,0.00022999,2]
[310069047,1704299765534,608.0657442,0.00022999,2]
[310069048,1704299767895,520.00185062,0.00022999,2]
[310069051,1704299783538,608.0657442,0.00022999,2]
[310069052,1704299795824,217.56881384,0.00022999,2]
[310069053,1704299799536,608.0657442,0.00022999,2]
[310069054,1704299799887,545.50990861,0.00022999,2]
[310069056,1704299817546,608.0657442,0.00022999,2]
[310069057,1704299835552,517.18374943,0.00022999,2]
[310069066,1704299917844,217.56881384,0.00022999,2]
[310069107,1704299935844,202.59347213,0.00022999,2]
[310069183,1704300481808,150.0,0.0002298,2]
[310069345,1704300631627,-1151.64223142,0.00026847,2]
[310069346,1704300631638,-357.11,0.00026848,2]
[310069347,1704300631647,-1250.0,0.00027,3]
[310069348,1704300631657,-593.15007525,0.000274,2]
[310069349,1704300631670,-2540.26,0.00028451,2]
[310069350,1704300631680,-150.0,0.00028627,2]
[310069351,1704300631691,-659.53,0.0002869,10]
[310069352,1704300631701,-4134.73911055,0.000287,2]
[310069353,1704300631750,-8658.399,0.000287,2]
[310069354,1704300631762,-1553.53575242,0.000287,2]
[310069355,1704300631776,-723.29676624,0.000287,2]
[310069356,1704300631788,-43217.27999998,0.000287,2]
[310069357,1704300631826,-471.51600552,0.000287,2]
[310069358,1704300631838,-255.27932175,0.000287,2]
[310069359,1704300631954,-1589.76308293,0.000287,2]
[310069360,1704300631967,-450.0,0.000287,2]
[310069361,1704300631979,-2194.55656055,0.000287,2]
[310069362,1704300631990,-5928.73494188,0.000287,2]
[310069406,1704300637678,-549.6,0.0002869,10]
[310069408,1704300637689,-25489.15635818,0.000287,2]
[310069409,1704300637700,-2000.0,0.00028725,2]
[310069410,1704300637710,-174.47,0.00028726,2]
[310069411,1704300637720,-1955.06,0.00028775,2]
[310069412,1704300637730,-170.42,0.00028799,2]
[310069413,1704300637739,-18208.39148111,0.000288,2]
[310069414,1704300637766,-2858.97621889,0.000288,2]
[310069415,1704300637776,-54218.30958731,0.000288,2]
[310069416,1704300637789,-99345.58371269,0.000288,2]
[310069417,1704300637799,-6142.2058,0.000288,2]
[310069418,1704300637810,-1000.0,0.000288,2]
[310069419,1704300637819,-441.22646066,0.000288,4]
[310069420,1704300637830,-1563.5385,0.000288,2]
[310069421,1704300637839,-682.80083149,0.000288,2]
[310069422,1704300637849,-350.08869156,0.000288,2]
[310069423,1704300637859,-250.0,0.00028813,2]
[310069424,1704300637868,-170.42,0.00028899,2]
[310069425,1704300637878,-1000.0,0.000289,2]
[310069426,1704300637888,-1294.5778,0.000289,2]
[310069427,1704300637898,-8359.8173,0.000289,2]
[310069428,1704300637908,-881.7444,0.000289,2]
[310069429,1704300637918,-1000.0,0.000289,2]
[310069430,1704300637928,-537.5464,0.000289,2]
[310069431,1704300637937,-100000.0,0.000289,2]
[310069432,1704300637948,-196.1746,0.000289,2]
[310069433,1704300637957,-17029.83266981,0.000289,2]
[310069434,1704300637970,-4623.35826826,0.000289,2]
[310069435,1704300637983,-932.06920043,0.000289,2]
[310069436,1704300637995,-3252.89656189,0.000289,2]
[310069437,1704300638059,-64914.87232434,0.000289,2]
[310069438,1704300638100,-9372.69779824,0.000289,2]
[310069559,1704300640165,-21644.51300001,0.000289,2]
[310069560,1704300640179,-2242.5,0.000289,2]
[310069561,1704300640199,-379.9422459,0.000289,2]
[310069562,1704300640211,-660.87471969,0.000289,2]
[310069563,1704300640224,-18903.88,0.000289,2]
[310069564,1704300640237,-1517.80621206,0.000289,2]
[310069565,1704300640333,-8111.94712182,0.000289,2]
[310069566,1704300641095,-91412.80987755,0.000289,2]
[310069567,1704300641105,-500.0,0.000289,2]
[310069568,1704300641114,-715.9,0.000289,2]
[310069569,1704300641123,-250.0,0.00028963,2]
[310069570,1704300641133,-1300.0,0.00029,3]
[310069571,1704300641143,-479.76930913,0.00029,2]
[310069572,1704300641152,-357.11,0.00029112,2]
[310069573,1704300641162,-1000.0,0.00029698,2]
[310069574,1704300641174,-5593.56,0.00029698,2]
[310069575,1704300641186,-174.47,0.00029705,2]
[310069577,1704300641195,-300.0,0.000298,10]
[310069578,1704300641205,-154.52,0.00029831,2]
[310069579,1704300641214,-734.98,0.0002984,2]
[310069580,1704300641224,-700.0,0.000299,10]
[310069581,1704300641233,-7500.0,0.000299,2]
[310069582,1704300641242,-192.13629495,0.0002993,2]
[310069583,1704300641252,-170.43,0.00029999,2]
[310069585,1704300641262,-170.43,0.00029999,2]
[310069587,1704300641271,-170.43,0.00029999,2]
[310069589,1704300641284,-170.42,0.00029999,2]
[310069591,1704300641294,-170.42,0.00029999,2]
[310069593,1704300641303,-170.42,0.00029999,2]
[310069595,1704300641312,-170.42,0.00029999,2]
[310069597,1704300641321,-170.42,0.00029999,2]
[310069599,1704300641330,-199.9631004,0.0003,4]
[310069602,1704300641340,-8777.94835675,0.0003,4]
[310069605,1704300641349,-410.25454,0.0003,4]
[310069608,1704300641359,-674.15928432,0.0003,4]
[310069610,1704300641369,-14323.0005177,0.0003,4]
[310069612,1704300641378,-155.0,0.0003,2]
[310069614,1704300641388,-86257.00664131,0.0003,2]
[310069616,1704300641400,-32381.10311474,0.0003,2]
[310069618,1704300641412,-9597.28101159,0.0003,2]
[310069621,1704300641424,-1709.67739017,0.0003,2]
[310069623,1704300641435,-251.75451069,0.0003,2]
[310069625,1704300641447,-368.75791384,0.0003,2]
[310069627,1704300641459,-303.84007919,0.0003,2]
[310069629,1704300641470,-2359.9,0.0003,2]
[310069661,1704300642622,-469524.27760622,0.0003,2]
[310069662,1704300642633,-1492.63250822,0.0003003,2]
[310069663,1704300642643,-441.22646066,0.00030226,5]
[310069664,1704300642654,-174.47,0.00030683,2]
[310069665,1704300642664,-1492.63250812,0.00030836,2]
[310069666,1704300642674,-892.38450812,0.00030893,2]
[310069667,1704300642684,-687.87667714,0.00030893,2]
[310069668,1704300642694,-12220.61999915,0.00030894,2]
[310069669,1704300642703,-161.31,0.00030899,2]
[310069670,1704300642713,-350000.0,0.00031,2]
[310069671,1704300642723,-1350.0,0.00031,3]
[310069672,1704300642733,-809.32561876,0.0003121,4]
[310069673,1704300642743,-960.40187854,0.00031211,4]
[310069674,1704300642754,-371.82785863,0.00031211,4]
[310069675,1704300642764,-1076.49621011,0.00031211,4]
[310069676,1704300642774,-197.91212264,0.00031211,4]
[310069677,1704300642786,-155.0,0.00031212,2]
[310069678,1704300642796,-256.89845486,0.00031212,4]
[310069679,1704300642806,-269.51878409,0.00031212,2]
[310069680,1704300642816,-695.95799169,0.00031212,15]
[310069681,1704300642826,-694.39902142,0.00031212,4]
[310069682,1704300642836,-161.31,0.00031285,2]
[310069683,1704300642846,-357.11,0.00031376,2]
[310069684,1704300642855,-153.84,0.00031427,2]
[310069685,1704300642865,-1492.63250812,0.00031643,3]
[310069686,1704300642875,-441.22646066,0.00031651,5]
[310069687,1704300642884,-174.47,0.00031662,2]
[310069688,1704300642894,-161.31,0.00031671,2]
[310069689,1704300642904,-151.13147927,0.00031876,2]
[310069690,1704300642913,-175.73,0.00031876,2]
[310069691,1704300642923,-526.00503714,0.0003189,4]
[310069692,1704300642932,-150.86287723,0.000319,2]
[310069693,1704300642942,-150.86287723,0.000319,2]
[310069694,1704300642951,-150.86287723,0.000319,2]
[310069695,1704300642960,-150.86287723,0.000319,2]
[310069696,1704300642970,-403.36098106,0.00031926,4]
[310069697,1704300642980,-296.83355854,0.00032,4]
[310069698,1704300642989,-239.37,0.00032,2]
[310069699,1704300642999,-161.31,0.00032058,2]
[310069700,1704300643008,-168.59,0.00032254,120]
[310069701,1704300643018,-153.84,0.00032379,2]
[310069702,1704300643029,-150.86287723,0.00032415,2]
[310069703,1704300643038,-351.19,0.00032424,2]
[310069704,1704300643048,-553.45202726,0.0003244,2]
[310069705,1704300643057,-161.31,0.00032444,2]
[310069706,1704300643066,-1492.63250812,0.00032449,4]
[310069707,1704300643076,-18223.08053151,0.00032536,2]
[310069708,1704300643089,-32772.52935252,0.00032538,7]
[310069709,1704300643098,-19937.15250373,0.0003254,7]
[310069710,1704300643108,-9968.57625186,0.0003254,7]
[310069711,1704300643117,-3773.61622934,0.00032542,7]
[310069712,1704300643126,-11640.36666495,0.00032544,7]
[310069713,1704300643136,-174.47,0.0003264,2]
[310069714,1704300643146,-151.0,0.00032672,120]
[310069715,1704300643156,-542.07,0.00032684,2]
[310069716,1704300643166,-317.0,0.00032684,2]
[310069717,1704300643176,-2265.0,0.00032684,2]
[310069718,1704300643185,-2886.0,0.00032684,2]
[310069719,1704300643195,-246.175,0.00032684,2]
[310069720,1704300643204,-200.0,0.00032684,2]
[310069721,1704300643214,-1026.0,0.00032684,2]
[310069722,1704300643223,-150.0,0.00032684,2]
[310069723,1704300643233,-193.74134558,0.000327,2]
[310069724,1704300643243,-193.74134558,0.000327,2]
[310069725,1704300643253,-193.74134558,0.000327,2]
[310069726,1704300643263,-193.74134558,0.000327,2]
[310069727,1704300643272,-1000.0,0.000327,11]
[310069728,1704300643283,-193.74134558,0.000327,2]
[310069729,1704300643293,-193.74134558,0.000327,2]
[310069730,1704300643303,-193.74134558,0.000327,2]
[310069731,1704300643312,-193.74134558,0.000327,2]
[310069732,1704300643322,-193.74134558,0.000327,2]
[310069733,1704300643331,-21441.6839,0.00032776,2]
[310069734,1704300643341,-55555.0,0.00032776,3]
[310069735,1704300643350,-193.74134558,0.00032776,2]
[310069736,1704300643359,-474.17562926,0.00032776,21]
[310069737,1704300643369,-1400.0,0.000328,11]
[310069738,1704300643378,-161.31,0.0003283,2]
[310069739,1704300643388,-272.05711455,0.00032874,4]
[310069740,1704300643398,-459.74176397,0.00032874,4]
[310069741,1704300643408,-213.03,0.00032875,2]
[310069742,1704300643417,-213.03,0.00032875,2]
[310069743,1704300643430,-394122.12311553,0.00032875,3]
[310069744,1704300643441,-713.55,0.00032876,2]
[310069745,1704300643450,-715.92,0.00032876,2]
[310069746,1704300643459,-719.17,0.00032876,2]
[310069747,1704300643469,-713.36,0.00032876,2]
[310069748,1704300643479,-736.56,0.00032876,2]
[310069749,1704300643489,-724.86,0.00032876,2]
[310069750,1704300643498,-151.0,0.00032876,7]
[310069751,1704300643508,-151.0,0.00032876,7]
[310069752,1704300643518,-203.24,0.00032876,7]
[310069753,1704300643528,-151.0,0.00032876,7]
[310069754,1704300643537,-151.0,0.00032876,7]
[310069755,1704300643547,-221.47325,0.00032876,7]
[310069756,1704300643557,-713.13,0.00032876,2]
[310069757,1704300643566,-500.0,0.00032876,2]
[310069758,1704300643576,-500.0,0.00032876,2]
[310069759,1704300643586,-635.04,0.00032876,2]
[310069760,1704300643596,-500.0,0.00032876,2]
[310069761,1704300643606,-500.0,0.00032876,2]
[310069762,1704300643616,-500.0,0.00032876,2]
[310069763,1704300643625,-500.0,0.00032876,2]
[310069764,1704300643635,-500.0,0.00032876,2]
[310069765,1704300643645,-500.0,0.00032876,2]
[310069766,1704300643654,-500.0,0.00032876,2]
[310069767,1704300643664,-500.0,0.00032876,2]
[310069768,1704300643674,-403.55,0.00032876,2]
[310069769,1704300643683,-624.67197111,0.00032876,2]
[310069770,1704300643693,-500.0,0.00032876,2]
[310069771,1704300643703,-500.0,0.00032876,2]
[310069772,1704300643712,-336.97091946,0.00032876,2]
[310069773,1704300643722,-500.0,0.00032876,2]
[310069774,1704300643732,-500.0,0.00032876,2]
[310069775,1704300643741,-590.2,0.00032876,2]
[310069776,1704300643751,-500.0,0.00032876,2]
[310069777,1704300643762,-500.0,0.00032876,2]
[310069778,1704300643772,-500.0,0.00032876,2]
[310069779,1704300643783,-500.0,0.00032876,2]
[310069780,1704300643792,-500.0,0.00032876,2]
[310069781,1704300643802,-500.0,0.00032876,2]
[310069782,1704300643812,-460.00617291,0.00032876,2]
[310069783,1704300643822,-500.0,0.00032876,2]
[310069784,1704300643831,-644.46,0.00032876,2]
[310069785,1704300643840,-520.32,0.00032876,2]
[310069786,1704300643850,-500.0,0.00032876,2]
[310069787,1704300643859,-500.0,0.00032876,2]
[310069788,1704300643869,-500.0,0.00032876,2]
[310069789,1704300643878,-500.0,0.00032876,2]
[310069790,1704300643888,-500.0,0.00032876,2]
[310069791,1704300643897,-500.0,0.00032876,2]
[310069792,1704300643907,-500.0,0.00032876,2]
[310069793,1704300643916,-500.0,0.00032876,2]
[310069794,1704300643926,-500.0,0.00032876,2]
[310069795,1704300643936,-500.0,0.00032876,2]
[310069796,1704300643946,-500.0,0.00032876,2]
[310069797,1704300643955,-176.18374876,0.00032876,2]
[310069798,1704300643965,-500.0,0.00032876,2]
[310069799,1704300643974,-386.57,0.00032876,2]
[310069800,1704300643983,-500.0,0.00032876,2]
[310069801,1704300643992,-500.0,0.00032876,2]
[310069802,1704300644002,-500.0,0.00032876,2]
[310069803,1704300644011,-500.0,0.00032876,2]
[310069804,1704300644021,-500.0,0.00032876,2]
[310069805,1704300644034,-500.0,0.00032876,2]
[310069806,1704300644043,-500.0,0.00032876,2]
[310069807,1704300644053,-500.0,0.00032876,2]
[310069808,1704300644062,-500.0,0.00032876,2]
[310069809,1704300644071,-500.0,0.00032876,2]
[310069810,1704300644081,-500.0,0.00032876,2]
[310069811,1704300644090,-377.34387924,0.00032876,2]
[310069812,1704300644100,-500.0,0.00032876,2]
[310069813,1704300644109,-500.0,0.00032876,2]
[310069814,1704300644119,-500.0,0.00032876,2]
[310069815,1704300644128,-500.0,0.00032876,2]
[310069816,1704300644137,-546.71,0.00032876,2]
[310069817,1704300644147,-500.0,0.00032876,2]
[310069818,1704300644156,-500.0,0.00032876,2]
[310069819,1704300644167,-500.0,0.00032876,2]
[310069820,1704300644177,-500.0,0.00032876,2]
[310069821,1704300644186,-500.0,0.00032876,2]
[310069822,1704300644196,-500.0,0.00032876,2]
[310069823,1704300644205,-932.14,0.00032876,2]
[310069824,1704300644214,-932.14,0.00032876,2]
[310069825,1704300644223,-500.0,0.00032876,2]
[310069826,1704300644232,-500.0,0.00032876,2]
[310069827,1704300644241,-932.14,0.00032876,2]
[310069828,1704300644251,-932.14,0.00032876,2]
[310069829,1704300644260,-500.0,0.00032876,2]
[310069830,1704300644270,-932.14,0.00032876,2]
[310069831,1704300644282,-413.55,0.00032876,2]
[310069832,1704300644292,-507.23,0.00032876,2]
[310069833,1704300644302,-932.14,0.00032876,2]
[310069834,1704300644311,-932.14,0.00032876,2]
[310069835,1704300644320,-500.0,0.00032876,2]
[310069836,1704300644330,-500.0,0.00032876,2]
[310069837,1704300644339,-500.0,0.00032876,2]
[310069838,1704300644348,-932.14,0.00032876,2]
[310069839,1704300644358,-932.14,0.00032876,2]
[310069840,1704300644367,-500.0,0.00032876,2]
[310069841,1704300644377,-932.14,0.00032876,2]
[310069842,1704300644386,-932.14,0.00032876,2]
[310069843,1704300644396,-932.14,0.00032876,2]